Cogmind - Beta 13 @@@ ROGUE MODE // 2024.05.14 @ 19:34:48 Player: BatSpy Result: Destroyed by RX-K5M(R) with Subdweller Machine Gun Performance ------------- Evolutions (0) 0 Regions Visited (3) 600 Robots Destroyed (13) 65 Value Destroyed (433) 433 Prototype IDs (0) 0 Alien Tech Used (0) 0 Bonus (0) 0 TOTAL SCORE: 1098 Bonus ------- None Cogmind --------- Core Integrity 0/250 Matter 296/300 Energy 125/125 System Corruption 0% Temperature Cool (0) Movement Treading (170) Location -10/Subcaves Parts ------- > --- POWER (1) -------- Light Ion Engine > --- PROPULSION (2) --- Armored Treads > --- UTILITY (2) ------ Improved Heat Sink Signal Interpreter > --- WEAPON (2) ------- Pulse Rifle > --- INVENTORY (5) ---- Improved Heat Sink Seismic Detector Mining Laser Stasis Trap (100%) Peak State ------------ > --- POWER ------------ Light Nuclear Core > --- PROPULSION ------- Armored Treads Advanced Treads > --- UTILITY ---------- Improved Heat Sink Signal Interpreter > --- WEAPON ----------- Field Laser Pulse Rifle > --- INVENTORY -------- Improved Heat Sink Seismic Detector Grenade Launcher Mining Laser [Rating: 19] Favorites ----------- Power Light Nuclear Core Engine Light Ion Engine Power Core Light Nuclear Core Propulsion Armored Treads Treads Armored Treads Utility Signal Interpreter Device Seismic Detector Storage Small Storage Unit Processor Signal Interpreter Weapon Pulse Rifle Energy Gun Pulse Rifle Ballistic Gun Light Assault Rifle Launcher Grenade Launcher Special Weapon Mining Laser Build | -11 -10 -10 -10 ------- Run | Yrd Mat Min Sub Slots Evolved . | . . . . Power . | . . . . Propulsion . | . . . . Utility . | . . . . Weapon . | . . . . Parts Attached 25 | 6 5 11 3 Power 4 | 1 2 1 . Engine 2 | 1 . 1 . Core 2 | . 2 . . Reactor . | . . . . Propulsion 4 | 2 . 2 . Treads 4 | 2 . 2 . Leg . | . . . . Wheel . | . . . . Hover . | . . . . Flight . | . . . . Utility 9 | 1 3 4 1 Device 7 | . 2 4 1 Storage 1 | 1 . . . Processor 1 | . 1 . . Hackware . | . . . . Protection . | . . . . Artifact . | . . . . Weapon 8 | 2 . 4 2 Energy Gun 4 | . . 3 1 Energy Cannon . | . . . . Ballistic Gun 2 | 2 . . . Ballistic Cannon . | . . . . Launcher 1 | . . 1 . Special Weapon 1 | . . . 1 Impact Weapon . | . . . . Slashing Weapon . | . . . . Piercing Weapon . | . . . . Special Melee Weapon . | . . . . Unidentified Prototypes . | . . . . Parts Lost 3 | . 1 . 2 Power . | . . . . Propulsion 1 | . . . 1 Utility 1 | . 1 . . Weapon 1 | . . . 1 Highest Loss Streak 1 | . 1 . 1 To Critical Strikes . | . . . . Average Slot Usage (%) 97 | . 95 99 96 Engine 6 | . 5 3 14 Core 7 | . 8 10 . Treads 27 | . 28 28 26 Device 12 | . 9 14 14 Storage 2 | . 9 . . Processor 11 | . 4 14 14 Energy Gun 18 | . . 24 23 Ballistic Gun 7 | . 28 1 . Naked Turns . | . . . . Heaviest Build 13 | 12 13 12 10 Greatest Support 42 | 40 40 42 42 Greatest Overweight (x) . | . . . . Average Overweight (x) . | . . . . Largest Inventory Capacity 8 | 8 8 5 5 Average Capacity 5 | 5 7 5 5 Most Carried 5 | 5 5 5 4 Average Carried 3 | . 2 4 4 Final Capacity 8 | 8 5 5 5 Final Carried 5 | . 5 4 4 Class Distribution -------------------- 100% | Mutant Dominant Class ---------------- Mutant | -10/Materials Mutant | -10/Mines Mutant | -10/Subcaves Resources | -11 -10 -10 -10 ----------- Run | Yrd Mat Min Sub Matter Collected 569 | 216 127 158 68 Remotely . | . . . . Salvage Created 414 | . 245 41 128 Parts 24 | . 12 4 8 Haulers Intercepted . | . . . . Recyclers Shooed 1 | . 1 . . Parts Field Recycled . | . . . . Retrieved Matter . | . . . . Parts Self-Destructed 4 | . . . 4 Prevented . | . . . . Kills | -11 -10 -10 -10 ------- Run | Yrd Mat Min Sub Combat Hostiles Destroyed 13 | . 6 4 3 Guns 13 | . 6 4 3 Classes Destroyed 4 | . 1 2 1 Swarmer 3 | . . 3 . Grunt 6 | . 6 . . Demolisher 1 | . . 1 . Subdweller 3 | . . . 3 Best Kill Streak 3 | . 2 3 2 Combat Bots Only 3 | . 2 3 2 Max Kills in Single Turn 1 | . 1 1 1 Gunslinging . | . . . . Exploded . | . . . . Melee . | . . . . Uniques/NPCs Destroyed . | . . . . Combat | -11 -10 -10 -10 -------- Run | Yrd Mat Min Sub Hostile Shots Fired 90 | . 34 19 37 Missed 26 | . 9 3 14 Damage Taken 1114 | . 324 313 477 Core 251 | . 75 52 124 Absorbed by Shields . | . . . . Core Remaining (%) 100 | 100 . . . Volleys Fired 65 | . 24 17 24 Largest 2 | . 2 2 2 Hottest 126 | . 40 126 126 Shots Fired 110 | . 48 25 37 Gun 92 | . 48 16 28 Cannon . | . . . . Launcher 9 | . . 9 . Special 9 | . . . 9 Kinetic 48 | . 48 . . Thermal 53 | . . 16 37 Explosive 9 | . . 9 . Electromagnetic . | . . . . Robot Hit Streak 15 | . 10 7 15 Robot Miss Streak 4 | . 3 4 1 Penetration Max . | . . . . Secondary Targets 1 | . . 1 . Max Gunslinging Chain 1 | . . 1 . Shots Hit Robots 66 | . 35 8 23 Core Hits 30 | . 20 4 6 Critical Kills . | . . . . Critical Parts Destroyed 1 | . 1 . . Critical Strikes 3 | . 1 . 2 Burn 2 | . . . 2 Destroy 1 | . 1 . . Melee Attacks . | . . . . Impact . | . . . . Slashing . | . . . . Piercing . | . . . . Sneak Attacks . | . . . . Combat Hostiles . | . . . . Follow-up Attacks . | . . . . Damage Inflicted 851 | . 303 155 393 Guns 851 | . 303 155 393 Cannons . | . . . . Explosions . | . . . . Melee . | . . . . Ramming . | . . . . Kinetic 303 | . 303 . . Thermal 548 | . . 155 393 Explosive . | . . . . Electromagnetic . | . . . . Impact . | . . . . Slashing . | . . . . Piercing . | . . . . Highest Corruption . | . . . . Average Corruption . | . . . . Corruption Purged . | . . . . Corruption Blocked . | . . . . Overload Shots . | . . . . Overflow Damage . | . . . . Projectiles . | . . . . Explosions . | . . . . Melee . | . . . . Knockbacks . | . . . . Impact . | . . . . Kinetic . | . . . . Secondary . | . . . . Self-Inflicted Damage 33 | . . 33 . Shots 3 | . . 3 . Rammed . | . . . . Targets Rammed . | . . . . Kicked . | . . . . Crushed . | . . . . Highest Temperature 398 | . 43 398 54 Average Temperature 72 | . 13 152 26 Received Heat Transfer 288 | . 204 . 84 Effects 1 | . . 1 . Shutdowns 1 | . . 1 . Siege Activations . | . . . . Robots Corrupted . | . . . . Combat Hostiles . | . . . . Parts Fried . | . . . . Impact Corruptions . | . . . . Robots Melted . | . . . . Combat Hostiles . | . . . . Parts Melted 1 | . . . 1 Heat Transferred 1332 | . . 333 999 Parts Sabotaged . | . . . . Parts Stolen . | . . . . Parts Stripped . | . . . . Power Chain Reactions . | . . . . Alert | -11 -10 -10 -10 ------- Run | Yrd Mat Min Sub Peak Influence 97 | . 89 97 . Initial 27 | . . 27 . Average 32 | . 40 29 . Maximum Alert Level . | . . . . Low Security (%) 100 | 100 100 100 . Level 1 . | . . . . Level 2 . | . . . . Level 3 . | . . . . Level 4 . | . . . . Level 5 . | . . . . High Security . | . . . . Max Security . | . . . . Squads Dispatched 1 | . . 1 . Investigation 1 | . . 1 . Extermination . | . . . . Reinforcement . | . . . . Assault . | . . . . Garrison . | . . . . Intercept . | . . . . Searches Triggered . | . . . . Construction Impeded . | . . . . Haulers Reinforced . | . . . . Active Scanning Responses . | . . . . Cargo Convoy Interrupts . | . . . . Stealth | -11 -10 -10 -10 --------- Run | Yrd Mat Min Sub Distress Signals 1 | . . 1 . Communications Jammed . | . . . . Distress Signals . | . . . . Times Spotted 19 | . 9 4 6 Peak Tracking Total 3 | . 2 3 3 Tactical Retreats . | . . . . Traps | -11 -10 -10 -10 ------- Run | Yrd Mat Min Sub Traps Triggered . | . . . . Indirectly . | . . . . Trap Hack Attempts . | . . . . Triggered . | . . . . Disarmed . | . . . . Reprogrammed . | . . . . Reused . | . . . . Traps Extracted . | . . . . Installed 1 | . . 1 . Triggered . | . . . . Most Traps Carried 1 | . . 1 1 Machines | -11 -10 -10 -10 ---------- Run | Yrd Mat Min Sub Machines Disabled . | . . . . Max in Single Turn . | . . . . Machines Repaired . | . . . . Machines Dismantled . | . . . . Machines Sabotaged . | . . . . Overloaded Fab Kills . | . . . . Hacking | -11 -10 -10 -10 --------- Run | Yrd Mat Min Sub Machines Accessed 5 | . 3 1 1 Terminals 3 | . 3 . . Fabricators . | . . . . Repair Stations . | . . . . Recycling Units . | . . . . Scanalyzers . | . . . . Garrison Access . | . . . . Total Hacks 12 | . 8 1 3 Successful 7 | . 3 1 3 Failed 5 | . 5 . . Catastrophic . | . . . . Database Lockouts . | . . . . Manual 5 | . . . 5 Terminals 8 | . 8 . . Fabricators . | . . . . Repair Stations . | . . . . Recycling Units . | . . . . Scanalyzers . | . . . . Garrison Access . | . . . . Terminal Hacks 7 | . 3 1 3 Record 4 | . 1 . 3 Open Door 1 | . . 1 . Zone Layout 2 | . 2 . . Fabricator Hacks . | . . . . Repair Station Hacks . | . . . . Recycling Unit Hacks . | . . . . Scanalyzer . | . . . . Garrison Access Hacks . | . . . . Unauthorized Hacks . | . . . . Terminals . | . . . . Fabricators . | . . . . Repair Stations . | . . . . Recycling Units . | . . . . Scanalyzers . | . . . . Garrison Access . | . . . . Data Cores Recovered . | . . . . Used . | . . . . Hacking Detections 1 | . 1 . . Full Trace Events . | . . . . Feedback Events . | . . . . Feedback Blocked . | . . . . Robot Schematics Acquired . | . . . . Robots Built . | . . . . Authchips . | . . . . Time . | . . . . Total Robot Build Rating . | . . . . Part Schematics Acquired . | . . . . Parts Built . | . . . . Authchips . | . . . . Time . | . . . . Total Part Build Rating . | . . . . Parts Repaired . | . . . . Time . | . . . . Parts Recycled . | . . . . Recycled Matter . | . . . . Retrieved Matter . | . . . . Retrieved Components . | . . . . Parts Scanalyzed . | . . . . Part Schematics Acquired . | . . . . Parts Damaged . | . . . . Bothacking | -11 -10 -10 -10 ------------ Run | Yrd Mat Min Sub Used RIF Installer . | . . . . Robots Hacked . | . . . . Non-combat . | . . . . Combat . | . . . . Robot Hacks Applied . | . . . . Relay Couplers Released . | . . . . Fabnet Peak Effective % . | . . . . Robots Rewired . | . . . . Allies Hacked . | . . . . Hacks Repelled . | . . . . Allies | -11 -10 -10 -10 -------- Run | Yrd Mat Min Sub Total Allies . | . . . . Largest Group . | . . . . Highest-Rated Group . | . . . . Highest-Rated Ally . | . . . . Total Orders . | . . . . Ally Attacks . | . . . . Total Damage . | . . . . Kills . | . . . . Allies Corrupted . | . . . . Allies Melted . | . . . . Intel | -11 -10 -10 -10 ------- Run | Yrd Mat Min Sub Robot Analysis Total . | . . . . Derelict Logs Recovered 1 | . . 1 . Drone Launches . | . . . . Drone Recoveries . | . . . . Exploration | -11 -10 -10 -10 ------------- Run | Yrd Mat Min Sub Turns Passed 2409 | 64 591 1208 546 Spaces Moved 1366 | 38 317 718 293 Core 7 | 7 . . . Treads 1359 | 31 317 718 293 Legs . | . . . . Wheels . | . . . . Hover . | . . . . Flight . | . . . . Fastest Speed 50 | 50 160 157 157 Average Speed 157 | 139 160 157 158 Slowest Speed 170 | 160 160 165 170 Overloaded Moves . | . . . . Propulsion Burnouts . | . . . . Robots Hopped . | . . . . Cave-ins Triggered . | . . . . Exploration Rate (%) 43 | 4 45 98 25 Regions Visited 3 Branch Regions 2 Pre-discovered Areas 1 | . . . 1 Known Exits Taken 2 | . 1 1 . Unknown Exits Taken 1 | 1 . . . Scrap Searched 2 | . . 2 . Spaces Dug 59 | . . 59 . Terrain Destroyed 68 | . . 68 . Melee . | . . . . Projectile . | . . . . AOE 68 | . . 68 . Terrain Rammed . | . . . . Walls Destroyed . | . . . . Machines Disabled . | . . . . Actions | -11 -10 -10 -10 --------- Run | Yrd Mat Min Sub Total 1508 | 49 363 776 320 Wait 20 | . 5 15 . Move 1363 | 37 316 717 293 Hop . | . . . . Pick Up 22 | 6 10 6 . Fast Attach . | . . . . Attach 11 | 6 2 3 . Detach . | . . . . Swap 14 | . 3 8 3 Drop 12 | . 3 9 . Fire 65 | . 24 17 24 Melee . | . . . . Ram . | . . . . Kick . | . . . . Crush . | . . . . Escape Stasis . | . . . . Rewire . | . . . . Trap 1 | . . 1 . Miscellaneous . | . . . . Route ------- -11/Scrapyard -10/Materials (discovered 2 exits: *Mat / *Min) -10/Mines (discovered 3 exits: *Mat x2 / *Sub) -10/Subcaves History --------- Turn | Location | Event 15 | -11/Scrapyard | Discovered new exit (range 15) 65 | -11/Scrapyard | Entered Materials 270 | -10/Materials | Discovered new exit (range 7) 300 | -10/Materials | Build established: Mutant 400 | -10/Materials | Discovered new exit (range 5) 481 | -10/Materials | Identified exit to Materials 633 | -10/Materials | Identified exit to Mines 656 | -10/Materials | Entered Mines 681 | -10/Mines | Met a Derelict shopkeep closing up shop 786 | -10/Mines | Assembled infested the area 900 | -10/Mines | Discovered exit to Materials (range 8) 1086 | -10/Mines | Discovered exit to Materials (range 14) 1091 | -10/Mines | Core integrity fell below 50% 1111 | -10/Mines | Identified exit to Subcaves 1575 | -10/Mines | Found a hidden stash of uninstalled traps 1864 | -10/Mines | Entered Subcaves 2053 | -10/Subcaves | Visited Clippyterm 2057 | -10/Subcaves | Learned location of Deep Caves (-7) 2235 | -10/Subcaves | Ambushed by Subdwellers from Twisted Machinery 2240 | -10/Subcaves | Core integrity fell below 20% 2410 | -10/Subcaves | Destroyed by RX-K5M(R) with Subdweller Machine Gun Last Messages --------------- PL-796(R) suffers critical hit (Burn). PL-796(R) heat spikes uncontrollably. PL-796(R) overheating. PL-796(R) destroyed. EF-4QI(u) builds Twisted Machinery. Subatomizers dissect the Sub. Monowheel. Acquired 45 matter. EF-4QI(u) builds Twisted Machinery. 55-I12(R) emerges from the Twisted Machinery. Disposable Heat Sink melted. 55-I12(R) destroyed. QA-86I(R) affixes Scrap Shield Fragment to Scrap Shield. QA-86I(R) suffers critical hit (Burn). QA-86I(R) destroyed. EF-4QI(u) builds Twisted Machinery. Acquired 7 matter. Field Laser destroyed. Adv. Treads destroyed. EF-4QI(u) builds Twisted Machinery. Map ----- +----------------------------------------------------+ | ?????????????????????????????????????????????????? | | ?????????????????????????????????????????????????? | | ?????????????????????????????????????????????????? | | ?????????????????????????????????????????????????? | | ?????????????????????????????????????????????????? | | ?????????????????????????????????????????????????? | | ?????????????????????????????????????????????????? | | ?????????????????????????????????????????????????? | | ?????????????????????????????????????????????????? | | ?????????????????????????????????????????????????? | | ?????????????????????????????????????????????????? | | ?????????????????????????? ?????????????????????? | | ?????????????????????????""]?????????????????????? | | ????????????????? ??###"" ?????????????????????? | | ?????????????????? ? "" ?????????????????????? | | ?????????????????? ""??????????????????????? | | ????????????###???? # ???" ???????????????????? | | ????????#### #???## #???? ???????????????????? | | ???????##% #??## #??##]????????????????????? | | ???????# #?## ##? ????????????????????? | | ???????# #?## "##""?????????????????????? | | ???????# ##?# """ "?????????????????? | | ???????## #?## #????????????????????? | | ????????## ### ##?????# ???????????? | | ?????????# ## ##?####"" ???????????? | | ????????### #?####=@### """ #????????? | | ????????# # ### ## ????????? | | ????????#% # ### #????????? | | ????????## ####### ###???????????? | | ?????????## #???## ###### #?????????????? | | ??????????# ##?## ##????????????????????? | | ?????????## #?# #?????????????????????? | | ??## ????# ##?## ##?????????????????????? | | ### #### #??## ##?????????????????????? | | ###???# #?????????????????????? | | ####?# RR####?????????????????????? | | ##### #???????????????????????? | | ## #### #??# #???????????????????????? | | ?## #??## #??# #???????????????????????? | | ???# ##?# ##??##???????????????????? | | ????# #?# ###""###"????????????????? | | ????# ##### """"" ????????????????? | | ## ##??#### ### """""""#???????????????? | | ?##??### ## """" "" ##??????????????? | | ????## ## """"" " ##?????????????? | | ????# """" ##? ##????????????? | | ??### ## """""" ##? #????????????? | | ### ### ## """"" ### #?????????????? | | #?# ###### "" ""## #?????????????? | | #?# #????## "" """"" #??????????????? | +----------------------------------------------------+ Best States ------------- Heat Dissipation 39 Energy Generation 14 Energy Capacity 250 Matter Stores 300 Matter Capacity 300 Sight Range 16 Terrain Scan Density 10 Evasion (%) 50 Recoil Reduction 2 Item Schematics ----------------- None Robot Schematics ------------------ None Fabricated ------------ Nothing Alien Tech Used ----------------- None Achievements -------------- None Challenges ------------ None Game ------ Seed RagnarokFactoryHumpback Manual? 0 Play Time 00:20:05 Cumulative 4.4 hours Start 2024.05.14 @ 19:13:53 End 2024.05.14 @ 19:34:48 Sessions 1 Manual Loads 0 Difficulty Rogue Special Mode None Game No. 6 Rogue 6 Adventurer 0 Explorer 0 Win Type - Total 0 Types 0/0/0/0/0/0/0/0/0 Lore% 3 Gallery% 12 Achievement% 8 Wizard Run 0 Options --------- Layout 1 ASCII 0 Keyboard 0 Movement Mouse Keybinds 0 Fullscreen 2 Font 32/SmallcapsGlow Map View 50x35 Zoom Use 0% Tactical HUD 0 Map Filters NONE Filters NONE Steam 1 RUN: 62591d6d-612d-48a3-969d-dd095577640c